bitfinex-derivatives/quotes_SOLF0:USTF0_20260218
["timestamp","ask_amount","ask_price","bid_price","bid_amount"]
[1771441471069,42.87608331,81.42,81.345,43.42994013]
[1771441471265,42.87608331,81.404,81.36,11.0669]
[1771441472067,11.0625,81.393,81.351,11.068]
[1771441472974,42.87608331,81.404,81.345,43.42994013]
[1771441473273,42.87608331,81.379,81.33,43.42994013]
[1771441474560,11.0645,81.378,81.339,11.0696]
[1771441475161,42.87608331,81.379,81.346,11.0688]
[1771441475377,11.0627,81.391,81.347,43.42994013]
[1771441475575,42.87608331,81.397,81.347,43.42994013]
[1771441476175,42.87608331,81.395,81.347,43.42994013]
[1771441476571,42.87608331,81.384,81.34,11.0695]
[1771441477674,11.0642,81.38,81.34,11.0695]
[1771441477975,11.0642,81.38,81.332,43.42994013]
[1771441477976,42.87608331,81.379,81.332,11.0707]
[1771441478773,42.87608331,81.376,81.325,5.16446357]
[1771441479169,11.0672,81.358,81.325,5.16446357]
[1771441479472,42.87608331,81.361,81.325,5.16446357]
[1771441479678,11.0669,81.36,81.325,5.16446357]
[1771441479975,42.87608331,81.361,81.325,5.16446357]
[1771441481574,42.87608331,81.383,81.327,11.0713]
[1771441481971,0.07826999,81.351,81.327,11.0713]
[1771441482375,82.0,81.389,81.339,43.42994013]
[1771441482571,42.87608331,81.397,81.339,43.42994013]
[1771441483473,42.87608331,81.397,81.326,43.42994013]
[1771441484073,42.87608331,81.397,81.34,43.42994013]
[1771441484274,42.87608331,81.413,81.34,51.70072977]
[1771441484976,11.0606,81.406,81.356,45.90946626]
[1771441485176,42.64999013,81.405,81.34,54.1802559]
[1771441485679,11.0613,81.401,81.358,11.0671]
[1771441486080,42.64999013,81.405,81.365,11.0661]
[1771441486383,42.64999013,81.405,81.325,5.16446357]
[1771441486384,42.64999013,81.42,81.366,45.90946626]
[1771441486581,42.64999013,81.42,81.376,11.0647]
[1771441486881,42.64999013,81.436,81.377,45.90946626]
[1771441487377,11.0579,81.427,81.377,45.90946626]
[1771441487578,8.27078964,81.45,81.36,85.67078964]
[1771441487579,42.64999013,81.426,81.36,54.1802559]
[1771441487777,42.64999013,81.426,81.341,45.90946626]
[1771441487987,42.64999013,81.391,81.341,45.90946626]
[1771441489077,42.64999013,81.391,81.342,11.0693]
[1771441489576,108.77078964,81.41,81.341,45.90946626]
[1771441489577,42.64999013,81.429,81.35,11.0682]
[1771441489776,42.64999013,81.427,81.35,56.97766626]
[1771441489979,42.64999013,81.409,81.35,45.90946626]
[1771441490173,42.64999013,81.429,81.35,45.90946626]
[1771441490371,11.0581,81.425,81.35,45.90946626]
[1771441490578,42.64999013,81.424,81.35,45.90946626]
[1771441490883,42.64999013,81.424,81.361,11.0667]
[1771441491382,42.64999013,81.422,81.35,45.90946626]
[1771441491683,42.64999013,81.422,81.34,8.27078964]
[1771441491684,42.64999013,81.422,81.369,56.97506626]
[1771441491879,42.64999013,81.419,81.34,8.27078964]
[1771441492074,42.64999013,81.417,81.34,8.27078964]
[1771441492378,11.0606,81.407,81.341,45.90946626]
[1771441492576,42.64999013,81.406,81.341,45.90946626]
[1771441493688,11.061,81.403,81.355,11.0674]
[1771441494385,53.71099013,81.403,81.355,11.0674]
[1771441494880,0.07772573,81.387,81.362,11.0665]
[1771441495081,42.64999013,81.403,81.362,11.0665]
[1771441497280,82.0,81.418,81.369,11.0655]
[1771441497281,124.64999013,81.418,81.369,11.0655]
[1771441497485,42.64999013,81.417,81.369,11.0655]
[1771441497876,82.0,81.418,81.375,45.52748753]
[1771441498084,43.01630475,81.434,81.375,45.52748753]
[1771441498982,43.01630475,81.434,81.391,11.0625]
[1771441499683,43.01630475,81.429,81.381,56.59148753]
[1771441500286,43.01630475,81.448,81.392,11.0624]
[1771441500782,43.01630475,81.448,81.397,0.07744101]
[1771441501088,82.0,81.449,81.397,0.07744101]
[1771441501089,43.01630475,81.434,81.397,0.07744101]
[1771441501288,82.0,81.449,81.381,45.52748753]
[1771441501485,43.01630475,81.448,81.381,45.52748753]
[1771441502775,11.0557,81.442,81.395,11.0621]
[1771441502990,54.07200475,81.442,81.395,11.0621]
[1771441503480,54.07240475,81.44,81.395,11.0621]
[1771441503877,82.0,81.449,81.381,45.52748753]
[1771441503878,43.01630475,81.439,81.381,45.52748753]
[1771441504182,43.01630475,81.418,81.366,45.52748753]
[1771441504384,82.0,81.449,81.366,45.52748753]
[1771441504385,43.01630475,81.436,81.366,45.52748753]
[1771441504694,11.0574,81.43,81.366,45.52748753]
[1771441504888,43.01630475,81.429,81.366,45.52748753]
[1771441505486,43.01630475,81.427,81.366,45.52748753]
[1771441505787,43.01630475,81.425,81.35,45.52748753]
[1771441505979,11.0598,81.412,81.369,11.0656]
[1771441506187,43.01630475,81.425,81.361,45.52748753]
[1771441507479,82.0,81.449,81.361,45.52748753]
[1771441507480,43.01630475,81.423,81.361,45.52748753]
[1771441508188,11.0612,81.402,81.361,45.52748753]
[1771441508586,11.0612,81.402,81.362,11.0665]
[1771441508987,11.0612,81.402,81.373,0.07762682]
[1771441509589,11.0619,81.397,81.373,0.07762682]
[1771441509789,11.0619,81.397,81.353,11.0678]
[1771441509996,0.0774856,81.396,81.353,11.0678]
[1771441510290,0.0774856,81.396,81.344,45.52748753]
[1771441510595,0.0774856,81.396,81.345,45.52748753]
[1771441510799,43.01630475,81.41,81.345,45.52748753]
[1771441511301,43.01630475,81.41,81.357,11.0673]
[1771441511499,43.01630475,81.41,81.345,45.52748753]
[1771441512700,11.0605,81.407,81.363,11.0664]
[1771441513091,43.01630475,81.41,81.351,45.52748753]
[1771441513694,43.01630475,81.41,81.374,11.0649]
[1771441513896,43.01630475,81.41,81.351,45.52748753]
[1771441514594,43.01630475,81.406,81.34,8.28163574]
[1771441514801,43.01630475,81.406,81.341,45.52748753]
[1771441515599,43.01630475,81.406,81.354,45.79427475]
[1771441516905,11.062,81.396,81.354,56.86187475]
[1771441517106,43.01630475,81.406,81.354,45.79427475]
[1771441517304,43.01630475,81.406,81.334,123.17427475]
[1771441517504,45.04609694,81.382,81.334,45.79427475]
[1771441517896,11.0644,81.379,81.334,45.79427475]
[1771441518096,45.04609694,81.379,81.319,45.79427475]
[1771441518604,56.11309694,81.359,81.325,4.61807877]
[1771441518805,45.04609694,81.376,81.325,45.79435352]
[1771441519109,45.04609694,81.364,81.325,7.877e-05]
[1771441520807,45.04609694,81.379,81.325,7.877e-05]
[1771441521010,45.04609694,81.395,81.325,7.877e-05]
[1771441521408,8.28163574,81.4,81.342,11.0693]
[1771441521409,56.10839694,81.394,81.342,11.0693]
[1771441521815,45.04609694,81.394,81.351,11.0681]
[1771441522308,53.32773268,81.36,81.325,7.877e-05]
[1771441522517,45.04609694,81.357,81.325,7.877e-05]
[1771441522716,104.125,81.393,81.325,7.877e-05]
[1771441522717,45.04609694,81.373,81.325,7.877e-05]
[1771441523312,56.11129694,81.373,81.325,7.877e-05]
[1771441525110,11.0663,81.364,81.325,7.877e-05]
[1771441525409,45.04609694,81.373,81.325,7.877e-05]
[1771441526820,11.0653,81.372,81.325,7.877e-05]
[1771441527311,45.04609694,81.373,81.325,7.877e-05]
[1771441527514,45.04609694,81.381,81.325,7.877e-05]
[1771441528108,45.04609694,81.381,81.339,11.0697]
[1771441528716,11.0625,81.392,81.339,11.0697]
[1771441528920,45.04609694,81.396,81.349,11.0683]
[1771441529118,45.04609694,81.396,81.349,56.86257475]
[1771441529915,11.0623,81.394,81.349,45.79427475]
[1771441530213,56.10839694,81.394,81.341,11.0695]
[1771441531013,45.04609694,81.394,81.348,11.0684]
[1771441531414,45.04609694,81.394,81.334,45.79427475]
[1771441532317,45.04609694,81.39,81.338,11.0698]
[1771441533222,0.078657,81.372,81.345,11.0689]
[1771441535114,0.078657,81.372,81.353,11.0678]
[1771441535317,45.04609694,81.39,81.353,11.0678]
[1771441536323,45.04609694,81.39,81.334,45.79427475]
[1771441537124,45.04609694,81.388,81.334,45.79427475]
[1771441537615,45.04609694,81.388,81.342,11.0693]
[1771441538613,45.04609694,81.38,81.325,7.877e-05]
[1771441539723,56.11169694,81.37,81.325,7.877e-05]
[1771441540623,45.04609694,81.37,81.325,7.877e-05]
[1771441541320,45.04609694,81.37,81.325,77.40007877]
[1771441541822,45.04609694,81.37,81.333,11.0704]
[1771441542430,45.04609694,81.37,81.325,7.877e-05]
[1771441543024,11.0657,81.369,81.339,0.07856918]
[1771441543323,45.04609694,81.368,81.325,7.877e-05]
[1771441544825,45.04609694,81.368,81.325,45.79435352]
[1771441545626,45.04609694,81.368,81.326,44.35963504]
[1771441545821,11.0641,81.381,81.328,55.43073504]
[1771441547421,0.07756688,81.363,81.328,55.43073504]
[1771441548521,0.07756688,81.363,81.325,77.40007877]
[1771441548522,44.43918983,81.383,81.338,55.42933504]
[1771441548822,82.0,81.399,81.349,55.42803504]
[1771441549124,44.43918983,81.4,81.349,44.35963504]
[1771441550120,44.43918983,81.4,81.351,44.35963504]
[1771441550323,44.43918983,81.421,81.351,44.35963504]
[1771441550519,55.49918983,81.411,81.359,11.067]
[1771441551729,44.43918983,81.402,81.336,44.35963504]
[1771441551928,44.43918983,81.4,81.325,7.877e-05]
[1771441552129,44.43918983,81.398,81.325,7.877e-05]
[1771441552430,44.43918983,81.396,81.325,7.877e-05]
[1771441552626,44.43918983,81.394,81.325,7.877e-05]
[1771441552927,44.43918983,81.379,81.325,7.877e-05]
[1771441553830,44.43918983,81.372,81.325,7.877e-05]
[1771441554329,126.43918983,81.372,81.325,7.877e-05]
[1771441554526,126.43918983,81.372,81.326,11.0715]
[1771441557128,126.43918983,81.372,81.341,0.0777791]
[1771441557730,82.0,81.372,81.341,0.0777791]
[1771441558428,57.6124699,81.371,81.341,0.0777791]
[1771441558633,46.5469699,81.371,81.341,0.0777791]
[1771441558927,46.5469699,81.369,81.325,7.877e-05]
[1771441559230,46.5469699,81.367,81.325,7.877e-05]
[1771441559431,46.5469699,81.365,81.325,7.877e-05]
[1771441559619,46.5469699,81.363,81.325,7.877e-05]
[1771441559823,57.6135699,81.363,81.325,7.877e-05]
[1771441560221,46.5469699,81.363,81.325,7.877e-05]
[1771441560426,46.5469699,81.38,81.325,7.877e-05]
[1771441560926,46.5469699,81.368,81.325,7.877e-05]
[1771441561430,46.5469699,81.362,81.325,7.877e-05]
[1771441562131,46.5469699,81.36,81.325,7.877e-05]
[1771441562328,46.5469699,81.351,81.325,7.877e-05]
[1771441562526,0.07773708,81.352,81.325,7.877e-05]
[1771441562727,46.5469699,81.369,81.325,7.877e-05]
[1771441563429,57.6127699,81.368,81.325,7.877e-05]
[1771441563628,9.58959319,81.367,81.325,7.877e-05]
[1771441563828,46.5469699,81.367,81.325,7.877e-05]
[1771441564625,46.5469699,81.364,81.325,7.877e-05]
[1771441565633,101.64,81.374,81.326,43.57228937]
[1771441565832,46.5469699,81.379,81.326,43.57228937]
[1771441566027,46.5469699,81.379,81.337,11.0699]
[1771441567229,11.066,81.367,81.326,43.57228937]
[1771441567534,57.6129699,81.367,81.325,7.877e-05]
[1771441568336,57.6129699,81.367,81.325,11.07157877]
[1771441568535,11.065,81.374,81.326,43.57228937]
[1771441568736,184.02,81.375,81.326,43.57228937]
[1771441569038,82.0,81.375,81.326,43.57228937]
[1771441569738,82.0,81.375,81.333,11.0705]
[1771441570236,82.0,81.375,81.333,43.57228937]
[1771441570438,82.0,81.375,81.339,11.0696]
[1771441571235,82.0,81.375,81.349,0.07749069]
[1771441571436,57.6109699,81.381,81.349,0.07749069]
[1771441572840,46.5469699,81.381,81.349,0.07749069]
[1771441574631,46.5469699,81.371,81.325,7.877e-05]
[1771441575035,43.62660063,81.369,81.325,7.877e-05]
[1771441575531,43.62660063,81.361,81.325,7.877e-05]
[1771441575730,43.62660063,81.359,81.325,7.877e-05]
[1771441576128,43.62660063,81.359,81.327,11.0713]
[1771441576333,43.62660063,81.359,81.325,7.877e-05]
[1771441576942,0.07842024,81.35,81.325,7.877e-05]
[1771441586151,82.0,81.362,81.33,3.0951876]
[1771441586346,43.62660063,81.373,81.333,11.0705]
[1771441587551,43.62660063,81.373,81.345,0.07833394]
[1771441588661,11.0658,81.369,81.345,0.07833394]
[1771441589049,3.0951876,81.37,81.345,0.07833394]
[1771441589254,43.62660063,81.373,81.345,0.07833394]
[1771441589651,11.0653,81.372,81.345,0.07833394]
[1771441590252,43.62660063,81.373,81.345,0.07833394]
[1771441591346,43.62660063,81.369,81.345,0.07833394]
[1771441592152,43.62660063,81.359,81.325,7.877e-05]
[1771441592951,54.69360063,81.359,81.325,7.877e-05]
[1771441593151,43.62660063,81.359,81.325,7.877e-05]
[1771441594357,104.62,81.371,81.33,3.0951876]
[1771441594859,43.83092393,81.387,81.33,46.88172657]
[1771441595060,43.83092393,81.385,81.33,46.88172657]
[1771441595661,11.0644,81.379,81.338,11.0699]
[1771441595863,43.83092393,81.385,81.338,11.0699]
[1771441596362,53.25349239,81.384,81.338,11.0699]
[1771441596663,53.25349239,81.383,81.338,11.0699]
[1771441596863,9.42256846,81.382,81.338,11.0699]
[1771441597063,43.83092393,81.383,81.338,11.0699]
[1771441597261,43.83092393,81.383,81.348,11.0685]
[1771441597262,9.42539764,81.382,81.348,11.0685]
[1771441597460,43.83092393,81.383,81.348,11.0685]
[1771441599172,11.36843675,81.406,81.325,7.877e-05]
[1771441599173,43.83092393,81.398,81.35,50.53219488]
[1771441600370,43.83092393,81.398,81.36,11.0667]
[1771441600972,149.51092393,81.397,81.36,11.0667]
[1771441601168,43.83092393,81.396,81.36,11.0667]
[1771441601369,43.83092393,81.396,81.35,50.53219488]
[1771441602077,43.83092393,81.394,81.35,50.53219488]
[1771441602371,43.83092393,81.394,81.325,7.877e-05]
[1771441602372,43.83092393,81.369,81.325,7.877e-05]
[1771441602573,82.0,81.393,81.325,7.877e-05]
[1771441602764,105.96,81.392,81.35,3.0951876]
[1771441602969,46.92611153,81.39,81.331,47.43700728]
[1771441603471,43.83092393,81.39,81.35,3.0951876]
[1771441603668,46.92611153,81.39,81.342,11.0693]
[1771441604377,43.83092393,81.387,81.34,3.0951876]
[1771441605072,43.83092393,81.387,81.341,11.0695]
[1771441606875,43.40455903,81.369,81.33,11.0708]
[1771441607378,43.40455903,81.367,81.325,7.877e-05]
[1771441607978,43.40455903,81.359,81.325,7.877e-05]
[1771441609177,43.40455903,81.356,81.325,7.877e-05]
[1771441609481,11.36843675,81.38,81.325,7.877e-05]
[1771441609482,43.40455903,81.349,81.325,7.877e-05]
[1771441610277,150.00455903,81.349,81.325,7.877e-05]
[1771441610884,106.66,81.358,81.325,7.877e-05]
[1771441611281,43.40455903,81.37,81.325,7.877e-05]
[1771441611583,106.7,81.369,81.33,3.0951876]
[1771441611982,43.40455903,81.37,81.333,11.0705]
[1771441612481,43.40455903,81.383,81.346,11.0686]
[1771441612872,150.16455903,81.399,81.35,50.90683557]
[1771441613077,150.18455903,81.399,81.35,50.90683557]
[1771441613471,43.40455903,81.398,81.35,50.90683557]
[1771441613674,43.40455903,81.398,81.356,11.0674]
[1771441613872,43.40455903,81.398,81.36,3.0951876]
[1771441614073,106.86,81.401,81.36,50.90683557]
[1771441614474,43.40455903,81.414,81.331,77.42]
[1771441614475,43.40455903,81.414,81.376,11.0646]
[1771441614673,43.40455903,81.414,81.38,3.0951876]
[1771441615086,43.40455903,81.414,81.374,11.0648]
[1771441615787,43.40455903,81.409,81.365,11.0662]
[1771441615988,43.40455903,81.407,81.345,47.81164797]
[1771441616288,43.40455903,81.405,81.345,47.81164797]
[1771441616587,43.40455903,81.403,81.345,47.81164797]
[1771441616779,43.40455903,81.4,81.355,11.0675]
[1771441616982,43.40455903,81.4,81.367,0.07756254]
[1771441617680,11.0616,81.399,81.367,0.07756254]
[1771441617875,45.75570052,81.398,81.367,0.07756254]
[1771441620484,107.36,81.407,81.368,11.0657]
[1771441620893,45.75570052,81.406,81.367,0.07756254]
[1771441621592,107.54,81.405,81.367,0.07756254]
[1771441621791,45.75570052,81.404,81.367,0.07756254]
[1771441622791,56.81660052,81.404,81.367,0.07756254]
[1771441623292,45.75570052,81.404,81.367,0.07756254]
[1771441624186,45.75570052,81.404,81.368,11.0658]
[1771441624791,82.0,81.413,81.375,11.0647]
[1771441625187,127.75570052,81.413,81.375,11.0647]
[1771441626182,127.75570052,81.413,81.382,11.0638]
[1771441626996,45.75570052,81.413,81.389,0.07813208]
[1771441629399,108.32,81.418,81.389,0.07813208]
[1771441630391,108.32,81.418,81.328,12.3]
[1771441630392,45.75570052,81.417,81.354,45.60288122]
[1771441630597,45.75570052,81.415,81.354,45.60288122]
[1771441630797,45.75570052,81.413,81.354,45.60288122]
[1771441631094,45.75570052,81.411,81.354,45.60288122]
[1771441631398,45.75570052,81.408,81.361,11.0667]
[1771441631799,0.07964635,81.391,81.354,45.60288122]
[1771441633602,0.07964635,81.391,81.368,11.0658]
[1771441634991,0.07964635,81.391,81.36,11.0668]
[1771441635193,47.85866921,81.391,81.34,48.07722482]
[1771441635698,47.77902286,81.391,81.35,11.0682]
[1771441635898,47.77902286,81.379,81.33,3.09395254]
[1771441636498,47.77902286,81.379,81.325,48.07730359]
[1771441636693,47.77902286,81.379,81.33,3.09395254]
[1771441637594,109.74,81.387,81.34,51.17117736]
[1771441637793,47.77902286,81.386,81.34,48.07722482]
[1771441638800,0.07846317,81.371,81.33,3.09395254]
[1771441639202,0.07846317,81.371,81.33,51.17117736]
[1771441639499,0.07846317,81.371,81.33,48.07722482]
[1771441639804,0.07846317,81.371,81.325,7.877e-05]
[1771441639805,47.77902286,81.369,81.325,7.877e-05]
[1771441639997,50.8729754,81.36,81.325,7.877e-05]
[1771441640197,160.8129754,81.36,81.325,7.877e-05]
[1771441640391,50.8729754,81.34,81.325,7.877e-05]
[1771441640797,50.8729754,81.34,81.288,232.66852318]
[1771441641098,50.8729754,81.34,81.289,48.07722482]
[1771441641494,50.8729754,81.34,81.295,11.0756]
[1771441641697,50.8729754,81.33,81.288,184.59129836]
[1771441642010,47.77902286,81.33,81.288,184.59129836]
[1771441642303,47.77902286,81.328,81.288,184.59129836]
[1771441642494,47.77902286,81.342,81.289,48.07722482]
[1771441643305,47.77902286,81.359,81.311,48.07722482]
[1771441644101,47.77902286,81.359,81.288,184.59129836]
[1771441644102,47.77902286,81.359,81.296,48.07722482]
[1771441644607,47.77902286,81.357,81.296,48.07722482]
[1771441645309,47.77902286,81.352,81.299,11.0751]
[1771441646607,47.77902286,81.349,81.299,11.0751]
[1771441647001,47.77902286,81.347,81.299,11.0751]
[1771441647804,158.01902286,81.347,81.299,59.15232482]
[1771441648307,47.77902286,81.346,81.299,59.15232482]
[1771441648799,47.77902286,81.344,81.299,59.15232482]
[1771441650101,47.77902286,81.344,81.299,48.07722482]
[1771441650301,0.07921037,81.33,81.299,48.07722482]
[1771441651409,0.07921037,81.33,81.299,59.15232482]
[1771441651808,47.77902286,81.371,81.299,48.07722482]
[1771441652208,82.0,81.397,81.323,48.07722482]
[1771441652209,47.77902286,81.396,81.323,48.07722482]
[1771441652507,47.77902286,81.394,81.323,48.07722482]
[1771441652715,47.77902286,81.392,81.323,48.07722482]
[1771441653210,110.72,81.391,81.331,48.07722482]
[1771441653805,11.063,81.389,81.341,11.0694]
[1771441655007,47.77902286,81.392,81.349,11.0682]
[1771441655313,110.98,81.402,81.349,48.07722482]
[1771441655620,47.77902286,81.406,81.349,48.07722482]
[1771441656716,47.77902286,81.406,81.363,11.0664]
[1771441658213,310.25233434,81.42,81.372,11.0652]
[1771441658416,47.77902286,81.419,81.363,48.07722482]
[1771441659015,47.77902286,81.419,81.379,11.0642]
[1771441662109,11.0579,81.427,81.379,11.0642]
[1771441662110,11.0579,81.427,81.379,59.14142482]
[1771441662711,111.84,81.43,81.386,11.0633]
[1771441662912,47.77902286,81.433,81.386,11.0633]
[1771441663220,47.77902286,81.447,81.392,48.07722482]
[1771441663515,111.9,81.442,81.392,48.07722482]
[1771441663714,111.9,81.442,81.409,11.0602]
[1771441664312,52.77902286,81.435,81.405,0.07897555]
[1771441664617,52.77902286,81.435,81.363,48.07722482]
[1771441664809,47.77902286,81.433,81.363,48.07722482]
[1771441665118,47.77902286,81.433,81.384,11.0635]
[1771441665319,44.92786518,81.431,81.384,11.0635]
[1771441665818,112.02,81.43,81.384,11.0635]
[1771441666020,44.92786518,81.429,81.384,11.0635]
[1771441667219,0.07803461,81.415,81.384,11.0635]
[1771441668224,0.07803461,81.415,81.391,11.0626]
[1771441668419,0.07803461,81.415,81.363,48.07722482]
[1771441668922,44.92786518,81.427,81.363,48.07722482]
[1771441669320,44.92786518,81.427,81.382,11.0638]
[1771441670512,44.92786518,81.425,81.374,11.0649]
[1771441670815,8.29982072,81.42,81.343,45.92885036]
[1771441671011,44.92786518,81.401,81.36,11.0668]
[1771441671417,44.92786518,81.4,81.36,11.0668]
[1771441672218,0.07836538,81.388,81.36,11.0668]
[1771441673312,0.07836538,81.388,81.343,45.92885036]
[1771441674714,0.07836538,81.388,81.373,11.065]
[1771441674918,0.07836538,81.388,81.362,45.92885036]
[1771441675418,44.92786518,81.417,81.362,45.92885036]
[1771441677014,44.92786518,81.431,81.376,45.92885036]
[1771441677230,159.56812432,81.445,81.376,45.92885036]
[1771441677420,47.12812432,81.445,81.376,45.92885036]
[1771441677621,47.12812432,81.445,81.378,46.31279916]
[1771441678626,47.12812432,81.445,81.395,11.0621]
[1771441678825,52.12812432,81.435,81.378,46.31279916]
[1771441679233,47.12812432,81.426,81.378,11.0643]
[1771441679431,47.12812432,81.426,81.363,46.31279916]
[1771441679621,47.12812432,81.424,81.363,46.31279916]
[1771441680833,58.18642432,81.424,81.376,11.0646]
[1771441681628,47.12812432,81.424,81.382,11.0638]
[1771441682030,47.12812432,81.424,81.363,46.31279916]
[1771441682233,47.12812432,81.424,81.382,11.0638]
[1771441682438,47.12812432,81.423,81.382,11.0638]
[1771441683138,47.12812432,81.423,81.363,46.31279916]
[1771441683333,82.0,81.422,81.363,46.31279916]
[1771441683533,47.12812432,81.421,81.363,46.31279916]
[1771441684440,47.12812432,81.421,81.381,11.064]
[1771441685141,47.12812432,81.421,81.373,11.065]
[1771441686841,47.12812432,81.421,81.389,0.07759317]
[1771441687240,58.18682432,81.421,81.389,0.07759317]
[1771441687434,58.18682432,81.421,81.373,11.065]
[1771441688241,58.18682432,81.421,81.379,11.0642]
[1771441689343,58.18702432,81.419,81.371,11.0654]
[1771441689549,0.07792862,81.408,81.371,11.0654]
[1771441689940,11.0609,81.404,81.357,11.0673]
[1771441690144,47.12812432,81.402,81.333,46.31279916]
[1771441690341,47.12812432,81.4,81.333,46.31279916]
[1771441691042,11.0631,81.389,81.347,11.0686]
[1771441691236,11.0631,81.389,81.333,46.31279916]
[1771441691640,58.19122432,81.389,81.333,46.31279916]
[1771441692641,0.077623,81.369,81.339,11.0697]
[1771441692839,0.077623,81.369,81.333,46.31279916]
[1771441693949,0.077623,81.369,81.343,11.0691]
[1771441695345,0.077623,81.369,81.333,46.31279916]
[1771441696141,48.0566543,81.369,81.331,11.0708]
[1771441696546,47.9790313,81.363,81.313,11.0732]
[1771441696848,47.9790313,81.363,81.306,47.38164195]
[1771441697046,11.36843675,81.386,81.288,184.59129836]
[1771441697047,47.9790313,81.359,81.289,47.38164195]
[1771441697250,47.9790313,81.357,81.289,47.38164195]
[1771441697449,48.0565134,81.343,81.289,47.38164195]
[1771441697847,47.9790313,81.383,81.302,47.38164195]
[1771441698047,8.28766049,81.42,81.311,47.38164195]
[1771441698352,8.28766049,81.42,81.31,8.28766049]
[1771441698353,47.9790313,81.408,81.313,47.38164195]
[1771441698549,47.9790313,81.408,81.29,36.89]
[1771441698550,47.9790313,81.394,81.311,47.38164195]
[1771441698749,47.9790313,81.392,81.313,47.38164195]
[1771441699148,47.9790313,81.386,81.343,11.0691]
[1771441700656,47.9790313,81.382,81.335,11.0702]
[1771441701251,47.9790313,81.382,81.332,47.38164195]
[1771441701751,47.9790313,81.382,81.33,11.0709]
[1771441702259,47.9790313,81.382,81.338,11.0698]
[1771441702454,47.9790313,81.382,81.307,77.4]
[1771441702455,47.9790313,81.382,81.331,47.38164195]
[1771441702662,47.9790313,81.382,81.348,0.07769911]
[1771441703653,47.9790313,81.382,81.331,47.38164195]
[1771441704556,47.9790313,81.382,81.339,11.0697]
[1771441705956,0.07773123,81.369,81.339,11.0697]
[1771441708258,0.07773123,81.369,81.346,11.0688]
[1771441710062,0.07773123,81.369,81.331,47.38164195]
[1771441711164,0.07773123,81.369,81.35,11.0682]
[1771441711462,82.0,81.381,81.35,47.38164195]
[1771441711658,11.0613,81.402,81.35,47.38164195]
[1771441711857,114.3,81.41,81.356,11.0673]
[1771441711858,129.9790313,81.401,81.356,11.0673]
[1771441712464,129.9790313,81.401,81.363,11.0664]
[1771441712657,47.9790313,81.4,81.35,47.38164195]
[1771441712956,47.9790313,81.392,81.346,11.0687]
[1771441713160,47.9790313,81.391,81.346,11.0687]
[1771441713855,59.0417313,81.391,81.346,11.0687]
[1771441714051,47.9790313,81.389,81.337,11.0699]
[1771441714252,114.66,81.388,81.337,11.0699]
[1771441714453,47.9790313,81.373,81.319,47.38164195]
[1771441715156,47.9790313,81.373,81.328,11.0711]
[1771441715762,47.9790313,81.371,81.328,11.0711]
[1771441716661,59.0444313,81.371,81.328,11.0711]
[1771441717565,47.9790313,81.386,81.335,47.38164195]
[1771441717763,47.9790313,81.4,81.341,47.38164195]
[1771441717969,37.27081567,81.437,81.34,8.28766049]
[1771441717970,11.0601,81.41,81.355,47.38164195]
[1771441718263,47.9790313,81.41,81.355,47.38164195]
[1771441718462,47.9790313,81.408,81.355,47.38164195]
[1771441719574,0.0780946,81.39,81.362,11.0665]
[1771441720370,47.9790313,81.422,81.368,47.38164195]
[1771441720665,47.9790313,81.421,81.368,47.38164195]
[1771441720866,47.9790313,81.421,81.376,11.0647]
[1771441721565,47.9790313,81.421,81.376,58.44634195]
[1771441722062,47.9790313,81.418,81.368,11.0657]
[1771441722653,36.89,81.439,81.368,11.0657]
[1771441722654,115.16,81.417,81.368,11.0657]
[1771441722858,47.9790313,81.412,81.36,11.0667]
[1771441723655,47.9790313,81.407,81.36,11.0667]
[1771441725356,45.08583771,81.4,81.349,11.0683]
[1771441726566,45.08583771,81.398,81.349,11.0683]
[1771441726968,11.0619,81.397,81.349,11.0683]
[1771441727270,45.08583771,81.396,81.349,11.0683]
[1771441727861,56.14803771,81.395,81.349,11.0683]
[1771441728665,45.08583771,81.395,81.349,46.40692601]
[1771441728858,45.08583771,81.395,81.356,11.0673]
[1771441729663,45.08583771,81.395,81.349,46.40692601]
[1771441730361,11.0624,81.394,81.351,57.47492601]
[1771441730664,45.08583771,81.414,81.364,46.48538297]
[1771441730870,115.46,81.425,81.364,46.48538297]
[1771441731167,115.46,81.425,81.364,57.47312601]
[1771441731168,45.08583771,81.412,81.364,57.47312601]
[1771441731669,45.08583771,81.412,81.371,11.0654]
[1771441731863,45.08583771,81.412,81.364,46.40692601]
[1771441732562,45.08583771,81.412,81.38,0.0783701]
[1771441733770,45.08583771,81.428,81.38,0.0783701]
[1771441733969,45.08583771,81.428,81.317,36.89]
[1771441733970,45.08583771,81.419,81.321,46.40692601]
[1771441734269,45.08583771,81.417,81.323,46.40692601]
[1771441734468,45.08583771,81.415,81.323,46.40692601]
[1771441734667,45.08583771,81.413,81.323,46.40692601]